bitfinex/quotes_BTCUSD_20250212
["timestamp","ask_amount","ask_price","bid_price","bid_amount"]
[1739367411915,0.03855858,94818.0,94771.0,0.02099079]
[1739367412127,0.03855858,94818.0,94780.0,0.32263122]
[1739367412325,0.03855858,94818.0,94781.0,0.048]
[1739367412520,0.03855858,94818.0,94781.0,0.04353915]
[1739367412749,0.03855858,94818.0,94772.0,0.0972428]
[1739367412949,0.00100069,94790.0,94773.0,0.10250365]
[1739367413150,0.158261,94780.0,94752.0,0.02125106]
[1739367413351,0.00100069,94790.0,94773.0,0.00043157]
[1739367413554,0.03855858,94818.0,94774.0,0.10250365]
[1739367413753,0.158198,94818.0,94780.0,0.32113008]
[1739367413956,1.04444908,94818.0,94774.0,0.10250365]
[1739367414183,0.08406364,94796.0,94773.0,0.00043157]
[1739367414379,0.158271,94774.0,94773.0,0.00043157]
[1739367414979,0.41077465,94774.0,94773.0,0.00043157]
[1739367415524,0.158255,94784.0,94773.0,0.00043157]
[1739367415727,0.158265,94778.0,94773.0,0.00043157]
[1739367415930,0.08406364,94813.0,94773.0,0.00043157]
[1739367415931,0.158234,94796.0,94774.0,0.22660365]
[1739367416132,0.21097,94800.0,94774.0,0.22660365]
[1739367416257,0.158253,94785.0,94774.0,0.1241]
[1739367416494,0.158269,94775.0,94774.0,0.1241]
[1739367416689,0.158269,94775.0,94773.0,0.00043157]
[1739367417636,0.10250365,94774.0,94773.0,0.00043157]
[1739367417793,0.158269,94775.0,94773.0,0.00043157]
[1739367417955,1.04444908,94796.0,94748.0,0.00093157]
[1739367418162,0.211028,94774.0,94749.0,0.10250365]
[1739367418361,0.10250365,94795.0,94749.0,0.10250365]
[1739367418567,0.158239,94793.0,94753.0,0.10250365]
[1739367418775,0.08406364,94803.0,94770.0,0.32113008]
[1739367419035,0.158248,94788.0,94771.0,0.10250365]
[1739367419369,0.08406364,94803.0,94771.0,0.10250365]
[1739367419580,0.158239,94793.0,94771.0,0.10250365]
[1739367419777,0.210944,94812.0,94771.0,0.10250365]
[1739367419984,0.158234,94797.0,94771.0,0.10250365]
[1739367420195,0.210958,94806.0,94771.0,0.10250365]
[1739367420409,0.210925,94820.0,94780.0,0.32113008]
[1739367420591,0.08406364,94803.0,94781.0,0.10250365]
[1739367420824,0.08406364,94803.0,94749.0,0.01035687]
[1739367421045,0.10250365,94802.0,94759.0,0.10250365]
[1739367421254,0.25250365,94802.0,94759.0,0.10250365]
[1739367421480,0.023,94800.0,94759.0,0.10250365]
[1739367421689,0.25250365,94802.0,94759.0,0.10250365]
[1739367421690,0.023,94783.0,94759.0,0.10250365]
[1739367421910,0.00043157,94802.0,94759.0,0.10250365]
[1739367422083,0.08406364,94798.0,94760.0,0.10250365]
[1739367422283,0.158266,94777.0,94761.0,0.10250365]
[1739367422495,0.08406364,94798.0,94750.0,0.08]
[1739367422496,0.15,94797.0,94750.0,0.08]
[1739367422693,0.08406364,94781.0,94730.0,0.0001066]
[1739367423024,1.04444908,94781.0,94719.0,0.15427834]
[1739367423226,0.08406364,94801.0,94736.0,0.08406364]
[1739367423402,0.08406364,94791.0,94737.0,0.10250365]
[1739367423629,0.08406364,94801.0,94748.0,0.02142287]
[1739367423833,0.08406364,94801.0,94762.0,0.10250365]
[1739367424041,0.158227,94800.0,94771.0,0.02086462]
[1739367424244,0.158227,94800.0,94750.0,0.32113008]
[1739367424245,0.07853635,94759.0,94730.0,0.31913008]
[1739367424477,0.07853635,94759.0,94740.0,0.07664588]
[1739367424776,0.07853635,94759.0,94708.0,0.15816]
[1739367424982,0.023,94757.0,94708.0,0.15816]
[1739367425186,0.158379,94710.0,94708.0,0.15806589]
[1739367425386,1.04444908,94743.0,94700.0,4.300999]
[1739367425561,0.158392,94702.0,94700.0,4.29959046]
[1739367426024,0.12550365,94701.0,94700.0,4.29959046]
[1739367426211,0.61050165,94701.0,94700.0,3.84393351]
[1739367426413,0.61050165,94701.0,94700.0,3.81892388]
[1739367426653,0.61050165,94701.0,94700.0,3.79780488]
[1739367426861,0.68740165,94701.0,94700.0,3.71044788]
[1739367427006,0.7150254,94701.0,94700.0,3.71044788]
[1739367427213,0.68740165,94701.0,94700.0,3.71044788]
[1739367427395,0.44574065,94701.0,94700.0,3.71044788]
[1739367427797,0.46874065,94701.0,94700.0,3.42451293]
[1739367428206,0.46874065,94701.0,94700.0,3.0337399]
[1739367428414,0.29184065,94701.0,94700.0,3.01987935]
[1739367428614,0.29184065,94701.0,94700.0,2.97764135]
[1739367428863,0.29184065,94701.0,94700.0,2.79013895]
[1739367429097,0.29184065,94701.0,94700.0,2.25505289]
[1739367429283,0.3194644,94701.0,94700.0,2.24635278]
[1739367429485,0.3194644,94701.0,94700.0,2.18299578]
[1739367429711,0.29184065,94701.0,94700.0,1.67652095]
[1739367430030,0.17550365,94701.0,94700.0,1.67652095]
[1739367430241,3.0374154,94701.0,94700.0,1.62442095]
[1739367430444,3.4605931,94701.0,94700.0,1.52802143]
[1739367430715,3.4605931,94701.0,94700.0,1.19485062]
[1739367430716,3.54465674,94701.0,94700.0,1.19485062]
[1739367431010,1.65442046,94701.0,94700.0,0.00769002]
[1739367431216,0.26837578,94700.0,94698.0,4.29304444]
[1739367431415,0.0545,94699.0,94698.0,2.93417789]
[1739367431529,0.2671,94699.0,94698.0,1.3876421]
[1739367431731,0.2671,94699.0,94698.0,1.0109201]
[1739367431732,0.8494868,94699.0,94698.0,1.0109201]
[1739367431933,0.8494868,94699.0,94698.0,0.6986321]
[1739367432155,0.308398,94698.0,94697.0,1.98781436]
[1739367432363,0.308398,94698.0,94697.0,0.2746312]
[1739367432643,0.331428,94680.0,94679.0,0.00435735]
[1739367432858,0.15843,94679.0,94678.0,1.45]
[1739367433060,4.32810143,94679.0,94678.0,1.337544]
[1739367433265,3.85153613,94679.0,94678.0,1.337544]
[1739367434123,4.71900857,94679.0,94678.0,1.23703921]
[1739367434545,4.71900857,94679.0,94678.0,1.19479121]
[1739367434773,4.71900857,94679.0,94678.0,1.13141921]
[1739367434991,1.87106057,94679.0,94678.0,1.13141921]
[1739367435243,1.87106057,94679.0,94678.0,0.71882357]
[1739367435397,2.48345535,94679.0,94678.0,0.69769957]
[1739367435615,2.48345535,94679.0,94678.0,0.61320357]
[1739367435817,1.87796865,94679.0,94677.0,1.70327121]
[1739367436014,0.40958143,94678.0,94677.0,1.51174721]
[1739367436197,0.45445812,94678.0,94677.0,0.57162826]
[1739367436405,0.308433,94677.0,94676.0,0.59948764]
[1739367436775,0.35330969,94677.0,94676.0,0.12155364]
[1739367436950,0.22948295,94677.0,94675.0,0.67519491]
[1739367437105,0.15,94676.0,94675.0,0.67519491]
[1739367437308,0.308436,94675.0,94674.0,1.91065]
[1739367437512,0.43954782,94675.0,94674.0,1.008721]
[1739367437713,0.39046808,94675.0,94674.0,0.35182993]
[1739367437909,0.39046808,94675.0,94674.0,0.22482993]
[1739367437910,0.45233423,94675.0,94674.0,0.22482993]
[1739367438110,0.30845,94667.0,94666.0,3.2892786]
[1739367438411,0.30845,94667.0,94666.0,2.02803144]
[1739367438412,2.84653338,94667.0,94666.0,2.02803144]
[1739367438612,2.82448576,94667.0,94666.0,1.98577744]
[1739367438818,2.82448576,94667.0,94666.0,1.49907344]
[1739367438819,2.81969986,94667.0,94666.0,1.49907344]
[1739367439429,2.81969986,94667.0,94666.0,0.34091689]
[1739367439789,2.86473973,94667.0,94666.0,0.13991689]
[1739367439968,2.86473973,94667.0,94651.0,0.0002]
[1739367439969,0.308465,94658.0,94657.0,4.7916589]
[1739367440178,0.89161182,94658.0,94657.0,4.26602791]
[1739367440575,0.87241182,94658.0,94657.0,4.20264091]
[1739367440775,0.89610983,94658.0,94657.0,4.16038291]
[1739367440951,1.09434169,94658.0,94657.0,3.52929591]
[1739367441155,0.95984169,94658.0,94657.0,1.37018945]
[1739367441332,0.93351706,94658.0,94657.0,1.37018945]
[1739367441539,2.2070162,94658.0,94657.0,1.26454445]
[1739367441812,2.1646262,94658.0,94657.0,1.26454445]
[1739367441987,0.3687282,94658.0,94657.0,1.26454445]
[1739367442191,0.3358082,94658.0,94657.0,1.26454445]
[1739367442386,0.1669712,94658.0,94657.0,1.26454445]
[1739367442587,0.158447,94669.0,94658.0,0.0826]
[1739367442851,0.19039851,94675.0,94659.0,0.0481]
[1739367443066,0.06229851,94675.0,94662.0,0.021308]
[1739367443282,0.211143,94723.0,94665.0,0.36306167]
[1739367443468,1.05761031,94731.0,94690.0,0.36306167]
[1739367445769,0.158372,94714.0,94711.0,0.00013345]
[1739367445998,0.308374,94712.0,94711.0,0.00013345]
[1739367446198,0.158446,94669.0,94668.0,0.0473]
[1739367446402,0.158446,94669.0,94657.0,0.21615105]
[1739367446403,0.158459,94662.0,94657.0,0.21615105]
[1739367446603,0.158463,94660.0,94650.0,5.0152825]
[1739367446781,0.211268,94667.0,94650.0,5.0152825]
[1739367446782,0.308476,94651.0,94650.0,1.8778168]
[1739367446992,2.306131,94651.0,94650.0,0.87639225]
[1739367447197,0.308476,94651.0,94650.0,0.87639225]
[1739367447603,0.158476,94651.0,94650.0,0.87639225]
[1739367447817,0.158476,94651.0,94650.0,0.74439225]
[1739367448393,0.211297,94654.0,94650.0,0.74439225]
[1739367448596,0.97354667,94696.0,94650.0,0.74439225]
[1739367448845,0.158446,94670.0,94651.0,0.10250365]
[1739367448997,0.158449,94668.0,94650.0,0.74439225]
[1739367449239,0.158475,94652.0,94650.0,0.74439225]
[1739367449445,0.462208,94651.0,94650.0,0.37860182]
[1739367449861,1.43575467,94651.0,94650.0,0.24965264]
[1739367450261,1.43575467,94651.0,94650.0,0.20739164]
[1739367450466,1.43575467,94651.0,94650.0,0.14399864]
[1739367450871,0.462208,94651.0,94650.0,0.14399864]
[1739367451108,0.15,94651.0,94650.0,0.14399864]
[1739367451305,0.158475,94652.0,94650.0,0.14399864]
[1739367451739,0.02993983,94651.0,94650.0,0.14399864]
[1739367452071,0.08406364,94692.0,94650.0,0.24650229]
[1739367452220,0.08406364,94692.0,94652.0,0.10250365]
[1739367452221,0.158421,94685.0,94652.0,0.10250365]
[1739367452555,0.08949842,94727.0,94652.0,0.10250365]
[1739367452556,0.08949842,94727.0,94665.0,0.10250365]
[1739367452745,0.211177,94708.0,94669.0,0.10250365]
[1739367452957,0.158417,94687.0,94653.0,0.1349199]
[1739367453173,0.08949842,94727.0,94653.0,0.1349199]
[1739367453174,0.158439,94674.0,94653.0,0.1349199]
[1739367453364,0.158441,94672.0,94653.0,0.1349199]
[1739367453537,0.00132074,94671.0,94653.0,0.1349199]
[1739367453907,0.08538431,94687.0,94653.0,0.1349199]
[1739367454107,0.10250365,94686.0,94653.0,0.1349199]
[1739367454328,0.15132077,94685.0,94653.0,0.1349199]
[1739367454543,0.158453,94666.0,94653.0,0.1349199]
[1739367454744,0.00132071,94665.0,94654.0,0.10250365]
[1739367454940,0.00132062,94679.0,94654.0,0.10250365]
[1739367455183,0.00132063,94706.0,94654.0,0.10250365]
[1739367455384,0.158428,94680.0,94654.0,0.10250365]
[1739367455582,0.08406364,94707.0,94653.0,0.1349199]
[1739367455583,0.10382424,94679.0,94653.0,0.1349199]
[1739367455762,0.15847,94655.0,94653.0,0.1349199]
[1739367455962,0.00132075,94654.0,94653.0,0.1349199]
[1739367456160,0.15,94678.0,94653.0,0.1349199]
[1739367456161,0.00132071,94657.0,94653.0,0.1349199]
[1739367456429,0.15847,94655.0,94653.0,0.1349199]
[1739367456922,0.15979079,94655.0,94653.0,0.1349199]
[1739367457128,0.00132078,94657.0,94653.0,0.1349199]
[1739367457325,0.00944339,94654.0,94653.0,0.1349199]
[1739367458026,0.00132072,94661.0,94653.0,0.0079199]
[1739367458276,0.15,94690.0,94653.0,0.0059199]
[1739367458469,0.158471,94654.0,94653.0,0.0060266]
[1739367458979,0.308471,94654.0,94653.0,0.0001067]
[1739367459110,0.41097465,94654.0,94653.0,0.0001067]
[1739367459294,0.62886465,94654.0,94653.0,0.0001067]
[1739367460387,0.308476,94651.0,94650.0,0.10173864]
[1739367460630,1.63315765,94651.0,94650.0,0.10173864]
[1739367460835,1.42057165,94651.0,94650.0,0.05408215]
[1739367461309,0.30848,94649.0,94648.0,0.08849775]
[1739367461531,0.30848,94649.0,94648.0,0.07640567]
[1739367461532,1.28368865,94649.0,94648.0,0.07640567]
[1739367461686,0.41098365,94649.0,94648.0,0.07640567]
[1739367461898,0.41098365,94649.0,94648.0,0.04330855]
[1739367462648,0.29119299,94649.0,94648.0,0.04330855]
[1739367462938,0.18868934,94649.0,94648.0,0.04330855]
[1739367463140,0.03020934,94649.0,94648.0,0.04330855]
[1739367463541,0.00034126,94653.0,94648.0,0.1458122]
[1739367463762,0.158446,94670.0,94649.0,0.10250365]
[1739367463980,0.08949842,94652.0,94649.0,0.10250365]
[1739367464179,0.211191,94701.0,94651.0,0.08406364]
[1739367464380,0.211191,94701.0,94652.0,0.10250365]
[1739367464381,0.158414,94689.0,94652.0,0.10250365]
[1739367464615,0.158418,94687.0,94655.0,0.0198]
[1739367464769,0.08406364,94706.0,94656.0,0.10250365]
[1739367464947,0.10250365,94685.0,94655.0,0.0198]
[1739367465147,0.10250365,94685.0,94648.0,0.0188122]
[1739367465148,0.211228,94684.0,94648.0,0.0188122]
[1739367465350,0.158437,94675.0,94651.0,0.08406364]
[1739367465575,0.15842,94685.0,94652.0,0.10250365]
[1739367465761,0.08406364,94722.0,94652.0,0.10250365]
[1739367465762,0.158408,94692.0,94660.0,0.36306167]
[1739367465955,0.211194,94700.0,94661.0,0.10355987]
[1739367466166,0.158406,94694.0,94666.0,0.10250365]
[1739367466379,0.08406364,94722.0,94666.0,0.10250365]
[1739367466572,0.211207,94694.0,94666.0,0.10250365]
[1739367466765,0.158426,94681.0,94667.0,0.10250365]
[1739367467010,0.211198,94698.0,94667.0,0.10250365]
[1739367467240,0.211187,94703.0,94667.0,0.10250365]
[1739367467463,0.21114,94724.0,94668.0,0.10355983]
[1739367467661,0.211181,94706.0,94668.0,0.10250365]
[1739367467902,0.00131417,94705.0,94641.0,0.08406364]
[1739367468255,0.10250365,94685.0,94651.0,0.10567548]
[1739367468460,0.00131417,94684.0,94661.0,0.08406364]
[1739367468587,0.00131417,94684.0,94662.0,0.10250365]
[1739367468937,0.02020669,94685.0,94662.0,0.10250365]
[1739367469230,0.01889252,94683.0,94662.0,0.10250365]
[1739367469436,0.158426,94681.0,94662.0,0.10250365]
[1739367469653,0.00131417,94680.0,94651.0,0.08406364]
[1739367469863,0.211242,94678.0,94652.0,0.10250365]
[1739367470045,0.211242,94678.0,94605.0,0.0001065]
[1739367470046,0.10381782,94677.0,94648.0,0.0188122]
[1739367470179,0.00131417,94677.0,94652.0,0.08406364]
[1739367470541,0.00131417,94681.0,94653.0,0.10250365]
[1739367470771,0.01889252,94677.0,94653.0,0.10250365]
[1739367470897,0.00131417,94676.0,94648.0,0.0188122]
[1739367471110,0.00131417,94676.0,94653.0,0.10250365]
[1739367471312,0.21256217,94676.0,94648.0,0.0188122]
[1739367471513,0.10250365,94675.0,94648.0,0.0188122]
[1739367471720,0.15848,94649.0,94648.0,0.0188122]
[1739367471924,2.47019782,94649.0,94648.0,0.0188122]
[1739367472136,3.08403032,94649.0,94648.0,0.0188122]
[1739367472545,1.76853032,94649.0,94648.0,0.0188122]
[1739367472745,0.41098365,94649.0,94648.0,0.0188122]
[1739367473044,1.40342284,94649.0,94648.0,4.92471459]
[1739367473247,2.59922284,94649.0,94648.0,4.92471459]
[1739367473644,2.45977886,94649.0,94648.0,4.92471459]
[1739367474272,2.20147886,94649.0,94648.0,4.92471459]
[1739367475210,2.19202284,94649.0,94648.0,4.92471459]
[1739367476198,0.61657617,94649.0,94648.0,4.92471459]
[1739367476532,0.55407617,94649.0,94648.0,4.92471459]
[1739367476738,0.55407617,94649.0,94648.0,4.9198619]
[1739367477128,0.58439472,94649.0,94648.0,4.80881533]
[1739367477535,0.58439472,94649.0,94648.0,4.76655333]
[1739367477738,2.21996225,94649.0,94648.0,4.44696033]
[1739367477942,2.25152093,94649.0,94648.0,3.84617959]
[1739367478142,2.60110898,94649.0,94648.0,2.94418635]
[1739367478320,2.85748768,94649.0,94648.0,2.52048497]
[1739367478524,2.8045869,94649.0,94648.0,1.14391776]
[1739367478847,0.308495,94640.0,94639.0,2.73132719]
[1739367479017,4.23081803,94640.0,94639.0,1.44114301]
[1739367479384,0.30851,94631.0,94630.0,4.57640946]
[1739367479610,3.42642046,94631.0,94630.0,3.08843819]
[1739367479781,3.42642046,94631.0,94630.0,1.91879266]
[1739367479782,3.46042626,94631.0,94630.0,1.91879266]
[1739367479989,3.46042626,94631.0,94630.0,1.49509428]
[1739367480189,3.43952626,94631.0,94630.0,1.47419428]
[1739367480389,0.15,94623.0,94621.0,4.08427924]
[1739367480590,0.41699264,94622.0,94621.0,3.59711388]
[1739367480768,0.44968427,94622.0,94621.0,2.56311443]
[1739367480971,5.09551603,94622.0,94621.0,1.09217685]
[1739367481170,0.15854,94613.0,94612.0,5.33958466]
[1739367481370,7.09236195,94613.0,94612.0,5.07331048]
[1739367481595,8.49874387,94613.0,94612.0,5.00989348]
[1739367481801,8.52417563,94613.0,94612.0,5.00989348]
[1739367482035,8.47767563,94613.0,94612.0,4.95779348]
[1739367482261,8.20687563,94613.0,94612.0,3.22877556]
[1739367482463,8.1952529,94613.0,94612.0,3.07535856]
[1739367482616,7.64172751,94613.0,94612.0,2.03639128]
[1739367482828,0.15,94612.0,94603.0,5.3326499]
[1739367483018,0.38495967,94604.0,94603.0,4.4172309]
[1739367483196,0.47099723,94604.0,94603.0,3.8207763]
[1739367483424,2.39400679,94604.0,94603.0,3.7996353]
[1739367483621,2.36313212,94604.0,94603.0,3.7130713]
[1739367483850,2.36313212,94604.0,94603.0,3.4564009]
[1739367484006,2.94609842,94604.0,94603.0,3.4564009]
[1739367484421,3.0084708,94604.0,94603.0,3.14784072]
[1739367484623,3.0084708,94604.0,94586.0,4.09230271]
[1739367484624,0.1113,94595.0,94586.0,4.09230271]
[1739367484825,0.545944,94587.0,94586.0,1.80099906]
[1739367485032,0.545944,94587.0,94555.0,0.0012066]
[1739367485033,0.21090324,94578.0,94577.0,4.34737301]
[1739367485232,5.12233384,94578.0,94577.0,1.75754606]
[1739367485493,5.12233384,94578.0,94555.0,0.0012066]
[1739367485494,0.158614,94569.0,94568.0,5.15070482]
[1739367485698,1.83185053,94569.0,94568.0,0.33751523]
[1739367485938,0.158629,94560.0,94559.0,3.97526789]
[1739367486138,0.158644,94551.0,94550.0,2.4877404]
[1739367486369,1.80537615,94551.0,94550.0,1.3760781]
[1739367486616,6.76149633,94551.0,94541.0,5.7714511]
[1739367486797,0.3083263,94542.0,94541.0,4.91329813]
[1739367487032,1.75936637,94542.0,94541.0,2.69514163]
[1739367487333,0.05252145,94540.0,94532.0,3.81310063]
[1739367487507,0.371274,94533.0,94532.0,3.03049274]
[1739367487737,0.41649939,94533.0,94532.0,2.52929829]
[1739367487867,0.57797857,94533.0,94532.0,2.00235525]
[1739367488071,0.56808767,94533.0,94532.0,1.54892827]
[1739367488268,1.267874,94533.0,94532.0,1.52429826]
[1739367488470,1.28919507,94533.0,94532.0,1.30982726]
[1739367488689,1.29208602,94533.0,94532.0,0.52751326]
[1739367488914,1.33540709,94533.0,94532.0,0.52851326]
[1739367489258,0.308678,94531.0,94530.0,0.14854401]
[1739367489380,7.14046177,94531.0,94530.0,0.10622401]
[1739367489587,7.54696076,94531.0,94511.0,4.068e-05]
[1739367489791,0.158689,94524.0,94523.0,6.00920077]
[1739367489985,7.11755871,94524.0,94523.0,5.97200077]
[1739367490219,7.30660452,94524.0,94523.0,5.00620077]
[1739367490436,7.67089064,94524.0,94523.0,4.5879555]
[1739367490606,7.72043305,94524.0,94523.0,4.4157965]
[1739367490783,7.52996585,94524.0,94523.0,3.0567965]
[1739367490988,7.50864478,94524.0,94523.0,3.0567965]
[1739367491194,7.50864478,94524.0,94523.0,3.05347277]
[1739367491399,7.53064478,94524.0,94523.0,3.03231377]
[1739367491702,2.84704478,94524.0,94523.0,2.85481336]
[1739367491949,2.85404478,94524.0,94523.0,2.85481336]
[1739367492150,2.91019827,94524.0,94523.0,2.85481336]
[1739367492377,2.88819827,94524.0,94523.0,2.85481336]
[1739367492566,2.88819827,94524.0,94523.0,2.74901836]
[1739367492738,7.71479827,94524.0,94523.0,2.74901836]
[1739367492944,6.61025414,94524.0,94523.0,2.62101836]
[1739367493148,6.43909827,94524.0,94523.0,2.62101836]
[1739367493547,6.30854478,94524.0,94523.0,2.46747026]
[1739367493766,2.39545477,94524.0,94523.0,2.46747026]
[1739367493966,2.38845477,94524.0,94523.0,2.46747026]
[1739367494164,1.92337685,94524.0,94523.0,2.46747026]
[1739367494603,6.60797685,94524.0,94523.0,2.36167526]
[1739367494830,4.62977685,94524.0,94523.0,2.36167526]
[1739367495010,4.61477685,94524.0,94523.0,2.36167526]
[1739367495213,4.75777685,94524.0,94523.0,2.36042828]
[1739367495415,4.75777685,94524.0,94523.0,2.33926928]
[1739367495416,1.65004972,94524.0,94523.0,2.33926928]
[1739367495622,0.88068619,94524.0,94523.0,2.31811028]
[1739367496811,0.86568619,94524.0,94523.0,2.41736746]
[1739367497012,0.86568619,94524.0,94523.0,2.41728519]
[1739367497306,0.83523371,94524.0,94523.0,2.54364264]
[1739367497502,0.24445921,94524.0,94523.0,2.54364264]
[1739367497701,0.17245104,94524.0,94523.0,2.54364264]
[1739367497932,0.18745104,94524.0,94523.0,2.40584989]
[1739367498088,0.18045104,94524.0,94523.0,2.38469089]
[1739367498288,0.18876521,94524.0,94523.0,2.18469089]
[1739367498695,0.16676521,94524.0,94523.0,2.18169541]
[1739367498894,0.75913531,94524.0,94523.0,2.18180211]
[1739367499041,2.13312114,94524.0,94523.0,2.05470211]
[1739367499244,0.89782114,94524.0,94523.0,2.05470211]
[1739367499444,0.79272114,94524.0,94523.0,2.05290211]
[1739367499627,0.49884339,94524.0,94523.0,1.98942511]
[1739367500012,1.27453838,94524.0,94523.0,2.03173588]
[1739367500213,1.10953838,94524.0,94523.0,1.94710711]
[1739367500381,0.52609198,94524.0,94523.0,1.94710711]
[1739367500584,0.54109198,94524.0,94523.0,1.94710711]
[1739367500785,0.54809198,94524.0,94523.0,1.94710711]
[1739367500986,0.67609198,94524.0,94523.0,1.94710711]
[1739367501190,3.63599198,94524.0,94523.0,1.94710711]
[1739367501446,5.95813448,94524.0,94523.0,1.81688911]
[1739367501650,6.16373448,94524.0,94523.0,0.35225311]
[1739367502028,6.17073448,94524.0,94523.0,0.35225311]
[1739367502242,5.77623448,94524.0,94523.0,0.35225311]
[1739367502663,5.77623448,94524.0,94523.0,0.26761711]
[1739367502664,5.81302485,94524.0,94523.0,0.26761711]
[1739367502866,5.60042485,94524.0,94523.0,0.20308688]
[1739367503071,1.67602485,94524.0,94523.0,0.11845811]
[1739367503306,0.59279349,94524.0,94523.0,0.09458004]
[1739367503479,0.57779349,94524.0,94523.0,0.09458004]
[1739367503720,0.59279349,94524.0,94523.0,0.03141825]
[1739367503926,0.58579349,94524.0,94522.0,0.20945389]
[1739367504131,5.3545956,94523.0,94522.0,0.20945389]
[1739367504335,5.55675935,94523.0,94522.0,0.20945389]
[1739367504545,5.55675935,94523.0,94522.0,0.16712589]
[1739367504750,0.32864927,94523.0,94522.0,0.10363889]
[1739367504956,2.98607389,94523.0,94522.0,0.10363889]
[1739367505166,1.82477389,94523.0,94522.0,0.10363889]
[1739367505382,0.158693,94522.0,94520.0,0.1046719]
[1739367505584,0.308704,94515.0,94514.0,6.13281122]
[1739367505790,7.0032778,94515.0,94514.0,5.96863175]
[1739367505990,7.0032778,94515.0,94514.0,5.51563175]
[1739367505991,7.1916778,94515.0,94514.0,5.51563175]
[1739367506192,7.1916778,94515.0,94514.0,5.43683673]
[1739367506402,7.3261778,94515.0,94514.0,3.12324004]
[1739367506604,7.3806778,94515.0,94514.0,1.30195127]
[1739367506816,7.3806778,94515.0,94514.0,0.87769808]
[1739367507029,7.2461778,94515.0,94514.0,0.45344489]
[1739367507241,7.1916778,94515.0,94514.0,0.45344489]
[1739367507454,7.1916778,94515.0,94514.0,0.41111689]
[1739367507666,7.29571245,94515.0,94514.0,0.31928458]
[1739367508079,7.30271245,94515.0,94514.0,0.19128458]
[1739367508292,7.2882939,94515.0,94514.0,0.19128458]
[1739367508495,7.2136778,94515.0,94514.0,0.14895658]
[1739367508699,5.4055778,94515.0,94514.0,0.08546458]
[1739367508904,5.4125778,94515.0,94514.0,0.18546458]
[1739367509106,5.4275778,94515.0,94514.0,0.18546458]
[1739367509522,5.4275778,94515.0,94514.0,0.14313658]
[1739367509725,5.4275778,94515.0,94514.0,0.07964458]
[1739367509969,0.15,94514.0,94511.0,4.068e-05]
[1739367510181,0.30871,94512.0,94511.0,4.068e-05]
[1739367510386,0.42002,94506.0,94505.0,6.21798601]
[1739367510585,4.98532,94506.0,94505.0,6.11217101]
[1739367510802,5.01572388,94506.0,94505.0,6.11217101]
[1739367511011,4.98532,94506.0,94505.0,6.11144631]
[1739367511194,5.66129776,94506.0,94505.0,6.11144631]
[1739367511431,5.57941631,94506.0,94505.0,6.11144631]
[1739367511632,5.58641631,94506.0,94505.0,6.00563131]
[1739367511839,5.61467849,94506.0,94505.0,6.00563131]
[1739367512043,5.60767849,94506.0,94505.0,6.00563131]
[1739367512251,5.69803887,94506.0,94505.0,6.00563131]
[1739367512431,5.72369919,94506.0,94505.0,5.95247919]
[1739367512673,5.72369919,94506.0,94505.0,5.88899019]
[1739367512858,5.67373887,94506.0,94505.0,5.86782719]
[1739367513100,5.67107311,94506.0,94505.0,5.73982719]
[1739367513274,5.70373343,94506.0,94505.0,5.62041574]
[1739367513490,5.6981625,94506.0,94505.0,5.59925274]
[1739367513701,5.6981625,94506.0,94505.0,5.51460074]
[1739367513702,5.81325126,94506.0,94505.0,5.51460074]
[1739367513911,6.10475126,94506.0,94505.0,5.51460074]
[1739367514124,1.31239847,94506.0,94505.0,5.51460074]
[1739367514270,1.13673815,94506.0,94505.0,5.51460074]
[1739367514471,1.18553694,94506.0,94505.0,5.40878574]
[1739367514671,5.96383508,94506.0,94505.0,5.40878574]
[1739367514900,5.8884747,94506.0,94505.0,5.37561374]
[1739367515054,5.85251438,94506.0,94505.0,5.33023789]
[1739367515265,4.37413688,94506.0,94505.0,5.33023789]
[1739367515462,4.21399633,94506.0,94505.0,5.30907489]
[1739367515674,4.21424152,94506.0,94505.0,4.97442289]
[1739367516087,4.18717777,94506.0,94505.0,4.97442289]
[1739367516292,4.26376559,94506.0,94505.0,4.90808391]
[1739367516544,4.28266948,94506.0,94505.0,4.80226891]
[1739367516736,4.26260573,94506.0,94505.0,4.80226891]
[1739367516940,4.25560573,94506.0,94505.0,4.80226891]
[1739367517163,4.26790506,94506.0,94505.0,4.74255842]
[1739367517487,4.24760573,94506.0,94505.0,4.74255842]
[1739367517644,4.26260573,94506.0,94505.0,4.63674342]
[1739367517844,4.09370184,94506.0,94505.0,4.50874342]
[1739367518050,3.47231308,94506.0,94505.0,4.50874342]
[1739367518225,3.48731308,94506.0,94505.0,4.50874342]
[1739367518608,3.48731308,94506.0,94505.0,4.46641742]
[1739367518813,3.48731308,94506.0,94505.0,4.40292842]
[1739367519423,0.76238401,94506.0,94505.0,4.42043942]
[1739367521309,0.20073804,94506.0,94505.0,4.42007374]
[1739367521510,0.00131417,94508.0,94505.0,4.42007374]
[1739367521920,0.15872,94506.0,94505.0,4.42007374]
[1739367522121,0.16003417,94506.0,94505.0,4.42007374]
[1739367522331,0.78741997,94506.0,94505.0,4.42007374]
[1739367522541,0.8168724,94506.0,94505.0,4.42007374]
[1739367522940,0.8388724,94506.0,94505.0,4.42007374]
[1739367523117,0.33072,94506.0,94505.0,4.42007374]
[1739367523502,0.16572,94506.0,94505.0,4.42007374]
[1739367523712,0.17403417,94506.0,94505.0,4.42007374]
[1739367523936,0.17372,94506.0,94505.0,4.21107374]
[1739367524144,4.30250037,94506.0,94505.0,4.21118034]
[1739367524337,6.21172773,94506.0,94505.0,4.21118034]
[1739367524588,0.82384314,94506.0,94505.0,4.21048034]
[1739367524790,0.83884314,94506.0,94505.0,4.21048034]
[1739367525416,0.33072,94506.0,94505.0,4.21048034]
[1739367525598,0.022,94506.0,94505.0,4.21048034]
[1739367525778,0.15872,94506.0,94505.0,4.21048034]
[1739367526183,0.16572,94506.0,94505.0,4.21048034]
[1739367526671,0.15872,94506.0,94505.0,4.21048034]
[1739367526871,0.31572,94506.0,94505.0,4.21048034]
[1739367527320,0.30872,94506.0,94505.0,4.21048034]
[1739367527565,0.8080821,94506.0,94505.0,4.21048034]
[1739367527765,1.0362551,94506.0,94505.0,4.21048034]
[1739367527971,0.514625,94506.0,94505.0,4.08248034]
[1739367528174,0.30872,94506.0,94505.0,4.08248034]
[1739367528376,1.91890339,94506.0,94505.0,3.51015434]
[1739367528554,3.23451239,94506.0,94505.0,3.36201334]
[1739367528770,2.9630699,94506.0,94505.0,3.36201334]
[1739367528973,2.9630699,94506.0,94505.0,3.31426782]
[1739367528974,3.05013831,94506.0,94505.0,3.31426782]
[1739367529176,1.84156442,94506.0,94505.0,3.31426782]
[1739367529345,1.44127807,94506.0,94505.0,3.31426782]
[1739367529695,1.13183656,94506.0,94505.0,3.31426782]
[1739367529920,0.41580236,94506.0,94505.0,3.31526782]
[1739367530124,0.25880236,94506.0,94505.0,3.31426782]
[1739367530348,0.24380236,94506.0,94505.0,3.31426782]